bitfinex/quotes_ETHUSD_20250824
["timestamp","ask_amount","ask_price","bid_price","bid_amount"]
[1755996374034,1e-08,4813.8,4813.7,5.82040407]
[1755996375519,0.74300001,4813.8,4813.7,0.104]
[1755996381709,1.11273653,4813.8,4813.7,0.104]
[1755996382033,2.2976133,4813.8,4813.7,0.104]
[1755996382230,1.95247945,4813.8,4813.6,0.001]
[1755996382431,0.64351525,4813.7,4813.6,0.001]
[1755996382608,1.50465229,4813.7,4813.6,0.001]
[1755996383707,1.94207556,4813.7,4813.6,0.001]
[1755996384001,0.9334814,4813.7,4813.6,0.001]
[1755996384241,0.305,4813.7,4813.6,5.70644723]
[1755996384438,1e-08,4813.8,4813.6,5.70644723]
[1755996384946,1e-08,4813.8,4813.7,2.07740407]
[1755996385101,1e-08,4813.8,4813.6,5.70644003]
[1755996385303,0.305,4813.7,4813.6,3.629]
[1755996385649,0.7391,4813.7,4813.6,5.70644723]
[1755996386143,1e-08,4813.8,4813.7,2.07740407]
[1755996386442,1e-08,4813.8,4813.7,3.30410407]
[1755996386806,0.022,4814.8,4814.7,2.7369726]
[1755996387006,0.022,4814.8,4814.7,8.2571726]
[1755996387306,0.022,4814.8,4814.7,9.55909405]
[1755996389017,0.022,4814.8,4814.7,9.29059405]
[1755996393058,0.022,4814.8,4814.7,5.66559405]
[1755996393248,0.022,4814.8,4814.7,7.9649726]
[1755996393650,0.022,4814.8,4814.7,7.3049726]
[1755996394251,0.022,4814.8,4814.7,7.4089726]
[1755996395951,0.7611,4814.8,4814.7,5.328]
[1755996396146,0.7611,4814.8,4814.7,1.701]
[1755996396350,0.7611,4814.8,4814.7,5.327]
[1755996397968,0.7611,4814.8,4814.7,5.325]
[1755996398766,0.7611,4814.8,4814.7,1.597]
[1755996398973,0.7611,4814.8,4814.7,5.22]
[1755996400658,0.7611,4814.8,4814.7,3.623]
[1755996400834,0.7611,4814.8,4814.7,3.62]
[1755996401839,0.7611,4814.8,4814.4,3.619]
[1755996402040,0.327,4814.8,4814.4,3.619]
[1755996402241,0.4341,4814.7,4814.4,3.619]
[1755996402444,0.305,4814.5,4814.4,3.619]
[1755996402841,0.7391,4814.5,4814.4,3.619]
[1755996403046,0.305,4814.5,4814.4,3.619]
[1755996403237,0.022,4814.8,4814.4,3.9172]
[1755996403440,0.022,4814.8,4814.4,3.619]
[1755996404279,0.4561,4814.8,4814.4,3.619]
[1755996405188,0.022,4814.8,4814.4,3.619]
[1755996405597,0.4561,4814.8,4814.4,3.619]
[1755996405894,0.4341,4814.7,4814.4,3.619]
[1755996406258,0.4341,4814.7,4814.4,5.69609642]
[1755996406459,0.022,4814.8,4814.4,3.619]
[1755996406676,0.4561,4814.8,4814.4,3.619]
[1755996407082,0.4561,4814.8,4814.4,5.69607922]
[1755996407287,0.4561,4814.8,4814.4,3.619]
[1755996408094,0.4561,4814.8,4814.4,5.69609461]
[1755996408396,0.4561,4814.8,4814.4,3.619]
[1755996408595,0.4561,4814.8,4814.4,5.69610125]
[1755996408803,0.022,4814.8,4814.7,2.0769726]
[1755996408980,0.022,4814.8,4814.7,6.65736986]
[1755996409863,0.022,4814.8,4814.7,6.8495485]
[1755996412693,0.022,4814.8,4814.7,7.5095485]
[1755996414092,0.022,4814.8,4814.7,6.54797534]
[1755996414394,0.022,4814.8,4814.7,6.84577534]
[1755996414764,0.022,4814.8,4814.7,6.54797534]
[1755996415392,0.022,4814.8,4814.7,6.84577534]
[1755996415701,0.022,4814.8,4814.7,7.50577534]
[1755996416786,0.022,4814.8,4814.7,7.77427534]
[1755996417683,0.022,4814.8,4814.7,7.50577534]
[1755996418599,0.022,4814.8,4814.7,7.77427534]
[1755996419107,0.022,4814.8,4814.7,10.77427534]
[1755996420314,0.022,4815.8,4815.2,2.73675693]
[1755996420508,0.022,4815.8,4815.2,8.6986381]
[1755996420717,0.022,4815.8,4815.2,9.0711381]
[1755996420910,0.022,4815.8,4815.2,8.5048381]
[1755996421240,0.7683,4815.3,4815.2,7.57116241]
[1755996421835,0.7683,4815.3,4815.2,7.37875693]
[1755996422034,0.7683,4815.3,4815.2,5.302]
[1755996422237,0.7683,4815.3,4815.2,7.37875693]
[1755996422438,0.002,4815.3,4815.2,7.37875693]
[1755996422734,0.002,4815.3,4815.2,8.32431639]
[1755996422938,0.002,4815.3,4815.2,8.62211639]
[1755996423246,0.002,4815.3,4815.2,9.28211639]
[1755996423460,0.002,4815.3,4815.2,12.44661639]
[1755996423613,0.002,4815.3,4815.2,12.55061639]
[1755996424171,0.002,4815.3,4815.2,12.28211639]
[1755996424322,0.7683,4815.3,4815.2,7.38075693]
[1755996424672,0.002,4815.3,4815.2,7.38075693]
[1755996425025,0.7683,4815.3,4815.2,7.38075693]
[1755996425549,0.002,4815.3,4815.2,7.38075693]
[1755996425954,0.022,4815.8,4815.7,2.07654131]
[1755996426255,0.022,4815.8,4815.7,6.64034131]
[1755996426419,0.022,4815.8,4815.7,6.74434131]
[1755996426618,0.022,4815.8,4815.7,7.8341077]
[1755996427219,0.022,4815.8,4815.7,10.8341077]
[1755996430361,0.02,4816.8,4816.7,2.07611019]
[1755996430655,0.022,4816.8,4816.7,7.27811019]
[1755996430849,0.022,4816.8,4816.7,8.21353902]
[1755996431048,0.022,4816.8,4816.7,8.31753902]
[1755996431049,0.3193,4816.8,4816.7,8.31753902]
[1755996431360,0.3193,4816.8,4816.7,9.17133902]
[1755996431361,0.022,4816.8,4816.7,9.17133902]
[1755996431560,0.022,4816.8,4816.7,9.27533902]
[1755996432458,0.022,4816.8,4816.7,8.97753902]
[1755996432659,0.022,4816.8,4816.7,5.37253902]
[1755996433046,0.022,4816.8,4816.7,8.97353902]
[1755996433242,0.7883,4816.8,4816.7,4.43711019]
[1755996433568,0.7883,4816.8,4816.7,8.03711019]
[1755996435057,0.7883,4816.8,4816.7,3.77711019]
[1755996435257,0.7883,4816.8,4816.7,7.37711019]
[1755996436059,0.7883,4816.8,4816.7,5.299]
[1755996436453,0.7883,4816.8,4816.7,7.37511019]
[1755996436653,0.7883,4816.8,4816.7,5.299]
[1755996437056,0.7883,4816.8,4816.7,7.37511019]
[1755996437885,0.022,4816.8,4816.7,8.32024042]
[1755996438255,0.022,4816.8,4816.7,8.98024042]
[1755996438800,0.7722,4816.8,4816.7,8.98024042]
[1755996438998,0.022,4816.8,4816.7,8.03511019]
[1755996440180,0.022,4816.8,4816.7,8.32991019]
[1755996446115,0.022,4816.8,4816.7,8.03511019]
[1755996447310,0.7722,4816.8,4816.7,8.03511019]
[1755996447607,0.7722,4816.8,4816.7,8.02011019]
[1755996448495,0.3266,4816.8,4816.7,8.02011019]
[1755996448695,0.3266,4816.8,4816.7,9.02974042]
[1755996449527,0.7722,4816.8,4816.7,9.02974042]
[1755996451324,0.022,4816.8,4816.7,9.02974042]
[1755996452521,0.3266,4816.8,4816.7,9.02974042]
[1755996452796,0.7722,4816.8,4816.7,9.02974042]
[1755996453734,0.022,4816.8,4816.7,9.02974042]
[1755996454254,0.022,4816.8,4816.7,9.32454042]
[1755996455157,0.002,4816.8,4816.7,12.32454042]
[1755996455351,0.022,4817.8,4816.7,12.32454042]
[1755996455352,0.022,4817.8,4817.7,2.73567926]
[1755996455527,0.022,4817.8,4817.7,7.90867926]
[1755996455715,0.022,4817.8,4817.7,8.6432296]
[1755996456550,0.7722,4817.8,4817.7,8.6432296]
[1755996460536,0.3266,4817.8,4817.7,4.4062296]
[1755996460734,0.7722,4817.8,4817.7,5.273]
[1755996462125,0.7722,4817.8,4817.7,1.7]
[1755996462325,0.7722,4817.8,4817.7,5.272]
[1755996462520,0.7722,4817.8,4817.7,1.7]
[1755996462752,0.7722,4817.8,4817.7,5.272]
[1755996463452,0.7722,4817.8,4817.7,3.572]
[1755996463860,0.7722,4817.8,4817.5,3.572]
[1755996464062,0.6401109,4817.7,4817.5,3.572]
[1755996464264,0.85727109,4817.6,4817.5,3.572]
[1755996470236,0.85727109,4817.6,4817.1,0.104]
[1755996470437,0.4686,4817.5,4817.1,0.104]
[1755996470651,0.3078,4817.2,4817.1,0.104]
[1755996470970,0.3078,4817.2,4817.1,3.676]
[1755996471268,0.7764,4817.2,4817.1,3.676]
[1755996472779,0.3078,4817.2,4817.1,3.676]
[1755996472973,0.7764,4817.2,4817.1,3.676]
[1755996474279,0.3078,4817.2,4817.1,3.676]
[1755996474571,0.7764,4817.2,4817.1,3.676]
[1755996475451,0.126,4817.8,4817.1,3.676]
[1755996475778,0.4686,4817.7,4817.1,3.676]
[1755996476567,0.3078,4817.2,4817.1,3.676]
[1755996476772,0.7764,4817.2,4817.1,3.676]
[1755996476971,0.126,4817.8,4817.1,0.104]
[1755996477151,0.4686,4817.5,4817.2,3.572]
[1755996477355,0.4686,4817.4,4817.2,3.572]
[1755996477552,0.7764,4817.3,4817.2,3.572]
[1755996477750,0.126,4817.8,4817.2,3.8766]
[1755996477954,0.3078,4817.3,4817.2,3.572]
[1755996478161,0.7764,4817.3,4817.2,3.572]
[1755996478561,0.7764,4817.3,4817.0,1.596]
[1755996478761,0.3078,4817.3,4817.1,3.572]
[1755996478985,0.4686,4817.2,4817.0,1.596]
[1755996479202,0.4686,4817.2,4817.1,3.572]
[1755996479576,0.7764,4817.2,4817.1,3.572]
[1755996479991,0.3078,4817.2,4817.1,3.572]
[1755996480509,0.7764,4817.2,4817.1,3.572]
[1755996483990,0.7764,4817.2,4816.9,0.104]
[1755996484200,0.104,4817.0,4816.8,0.001]
[1755996484519,1.06806978,4816.9,4816.8,0.001]
[1755996484685,1.53666978,4816.9,4816.8,0.001]
[1755996485336,0.3078,4816.9,4816.8,3.573]
[1755996485511,0.7764,4816.9,4816.8,3.573]
[1755996485818,0.8804,4816.9,4816.8,3.593]
[1755996486396,0.32478752,4817.5,4816.8,3.593]
[1755996486626,0.104,4817.4,4816.8,3.593]
[1755996487034,0.4706,4817.6,4816.8,3.593]
[1755996487204,0.106,4817.6,4816.8,3.593]
[1755996487532,0.002,4817.6,4817.2,0.104]
[1755996487832,0.4706,4817.6,4817.3,3.572]
[1755996490427,0.002,4817.6,4817.3,3.572]
[1755996490636,0.4686,4817.5,4817.3,3.572]
[1755996491001,0.002,4817.6,4817.3,3.572]
[1755996492521,0.002,4817.6,4817.5,0.3046]
[1755996495348,0.7784,4817.6,4817.3,3.572]
[1755996495546,0.002,4817.6,4817.3,3.572]
[1755996495845,0.002,4817.6,4817.3,5.64783765]
[1755996496418,0.002,4817.6,4817.3,3.572]
[1755996496615,0.002,4817.6,4817.3,5.64785048]
[1755996496813,0.002,4817.6,4817.3,3.572]
[1755996497014,0.002,4817.6,4817.3,5.64783647]
[1755996497215,0.002,4817.6,4817.5,0.3046]
[1755996497618,0.3098,4817.6,4817.3,3.572]
[1755996497949,0.4686,4817.5,4817.3,3.572]
[1755996498844,0.3155,4817.4,4817.3,3.572]
[1755996499050,0.783,4817.4,4817.3,3.572]
[1755996499428,0.783,4817.4,4817.3,3.571]
[1755996499630,0.97761709,4817.4,4817.2,3.571]
[1755996499831,0.4675,4817.3,4817.2,3.571]
[1755996500155,0.783,4817.3,4817.2,3.571]
[1755996500927,0.783,4817.3,4817.1,3.571]
[1755996501141,0.4675,4817.2,4816.8,0.001]
[1755996501342,0.3155,4816.9,4816.8,0.001]
[1755996501543,0.3155,4816.9,4816.8,3.572]
[1755996502164,0.783,4816.9,4816.8,3.572]
[1755996502777,0.783,4816.9,4816.8,3.571]
[1755996504078,0.3155,4816.9,4816.8,3.571]
[1755996504288,0.783,4816.9,4816.8,3.571]
[1755996505183,0.4675,4817.2,4816.8,3.571]
[1755996505480,0.104,4817.4,4816.8,3.571]
[1755996505787,0.4675,4817.1,4816.8,3.571]
[1755996505982,0.104,4817.4,4816.8,3.571]
[1755996506180,0.104,4817.4,4817.0,0.302]
[1755996506361,0.104,4817.4,4817.1,3.57]
[1755996507055,0.3155,4817.2,4817.1,3.57]
[1755996507256,0.97762107,4817.2,4816.8,0.001]
[1755996507486,0.104,4816.9,4816.8,0.001]
[1755996507674,0.4195,4816.9,4816.8,0.001]
[1755996507872,0.61412107,4816.9,4816.8,0.001]
[1755996508050,1.08162107,4816.9,4816.8,0.001]
[1755996508455,10.80898545,4816.9,4816.8,0.001]
[1755996508751,14.4802211,4816.9,4816.8,0.001]
[1755996509151,8.50645454,4816.9,4816.8,0.001]
[1755996509356,15.04032555,4816.9,4816.8,0.001]
[1755996510085,12.96430156,4816.9,4816.8,0.001]
[1755996510573,12.40419711,4816.9,4816.8,0.001]
[1755996510778,12.20944633,4816.9,4816.8,0.001]
[1755996511089,12.40389136,4816.9,4816.8,0.001]
[1755996512161,14.47991535,4816.9,4816.8,0.001]
[1755996512373,12.40379306,4816.9,4816.8,0.001]
[1755996512976,14.47981705,4816.9,4816.8,0.001]
[1755996513394,12.40379306,4816.9,4816.8,0.001]
[1755996513885,14.47981705,4816.9,4816.8,0.001]
[1755996515794,14.47971609,4816.9,4816.8,0.001]
[1755996516492,15.9736921,4816.9,4816.8,0.001]
[1755996517287,15.77924707,4816.9,4816.8,0.001]
[1755996517488,15.9734353,4816.9,4816.8,0.001]
[1755996517806,15.04945929,4816.9,4816.8,0.001]
[1755996519710,12.9734353,4816.9,4816.8,0.001]
[1755996520704,12.5850013,4816.9,4816.8,0.001]
[1755996521013,5.97204496,4816.9,4816.8,0.001]
[1755996521387,6.43954496,4816.9,4816.8,0.001]
[1755996521585,6.24537831,4816.9,4816.8,0.001]
[1755996522417,9.24537831,4816.9,4816.8,0.001]
[1755996523092,8.77787831,4816.9,4816.8,0.001]
[1755996523682,4.89337831,4816.9,4816.8,0.303]
[1755996523886,3.74576125,4816.9,4816.8,0.303]
[1755996524220,4.25544241,4816.9,4816.8,0.001]
[1755996524430,3.93994241,4816.9,4816.8,0.001]
[1755996524724,4.25544241,4816.9,4816.8,0.001]
[1755996524927,4.72301544,4816.9,4816.8,0.001]
[1755996525089,5.61904364,4816.9,4816.8,0.001]
[1755996525295,5.15154364,4816.9,4816.8,0.001]
[1755996525495,2.15154364,4816.9,4816.8,0.001]
[1755996525695,1.38844904,4816.9,4816.8,0.001]
[1755996526425,1.70394904,4816.9,4816.8,0.001]
[1755996526627,2.17144904,4816.9,4816.8,0.001]
[1755996527399,2.17155821,4816.9,4816.8,0.001]
[1755996527628,2.17355821,4816.9,4816.8,0.001]
[1755996528227,2.62115281,4816.9,4816.8,0.001]
[1755996528526,2.17355821,4816.9,4816.8,0.001]
[1755996530118,9.18915281,4816.9,4816.8,0.001]
[1755996530543,8.99507838,4816.9,4816.8,0.001]
[1755996530715,9.18953396,4816.9,4816.8,0.001]
[1755996531043,9.15223396,4816.9,4816.8,0.001]
[1755996531618,8.95777838,4816.9,4816.8,0.001]
[1755996533419,9.51788283,4816.9,4816.8,0.001]
[1755996533615,11.59390682,4816.9,4816.8,0.001]
[1755996533919,9.51788283,4816.9,4816.8,0.001]
[1755996534117,11.59390682,4816.9,4816.8,0.001]
[1755996534330,9.51788283,4816.9,4816.8,0.001]
[1755996535214,18.12669646,4816.9,4816.8,0.001]
[1755996535420,17.68341401,4816.9,4816.8,0.001]
[1755996535761,19.12123336,4816.9,4816.8,0.001]
[1755996536462,18.66824504,4816.9,4816.8,0.001]
[1755996536662,2.07623951,4816.4,4816.3,0.001]
[1755996536842,12.78360673,4816.4,4816.3,0.001]
[1755996537146,17.42540133,4816.4,4816.3,0.001]
[1755996537354,7.92728262,4816.3,4815.8,0.021]
[1755996537529,12.66954471,4815.9,4815.8,0.021]
[1755996537725,18.59141689,4815.9,4815.8,0.021]
[1755996537926,19.02161689,4815.9,4815.8,0.021]
[1755996538327,19.12412106,4815.9,4815.8,0.021]
[1755996538519,2.07684989,4815.0,4814.8,0.021]
[1755996538719,6.86545558,4814.9,4814.8,0.021]
[1755996538921,7.31305018,4814.9,4814.8,0.021]
[1755996539222,9.68623651,4814.9,4814.8,0.021]
[1755996539424,8.03955018,4814.9,4814.8,0.021]
[1755996539655,9.62755824,4814.9,4814.8,0.021]
[1755996540040,9.19735824,4814.9,4814.8,0.021]
[1755996540245,3.74605018,4814.9,4814.8,0.3369]
[1755996540564,8.0386034,4814.9,4814.8,0.021]
[1755996541128,10.11549196,4814.9,4814.8,0.021]
[1755996541456,9.31538945,4814.9,4814.8,0.021]
[1755996541622,9.61168945,4814.9,4814.8,0.021]
[1755996541820,10.04188945,4814.9,4814.8,0.021]
[1755996542021,12.11877578,4814.9,4814.8,0.021]
[1755996542325,10.04188945,4814.9,4814.8,0.021]
[1755996543625,12.11863212,4814.9,4814.8,0.021]
[1755996544852,13.52618115,4814.9,4814.8,0.021]
[1755996545237,12.77863212,4814.9,4814.8,0.021]
[1755996545437,12.89503295,4814.9,4814.8,0.021]
[1755996545745,13.52352649,4814.9,4814.8,0.021]
[1755996546457,12.77863212,4814.9,4814.8,0.021]
[1755996547977,12.77863212,4814.9,4813.8,0.021]
[1755996547978,0.66,4814.0,4813.8,0.021]
[1755996548261,0.66,4814.0,4812.8,0.02]
[1755996548262,5.73757671,4813.3,4812.8,0.02]
[1755996548558,10.79870669,4813.3,4812.8,0.02]
[1755996548867,1.19882998,4813.3,4812.8,0.02]
[1755996549071,0.19451103,4813.3,4813.2,0.3169]
[1755996549277,3.0,4813.4,4813.2,0.6064]
[1755996549771,3.0,4813.6,4813.3,0.2895]
[1755996550075,1.597,4813.9,4813.3,0.2895]
[1755996550076,3.0,4813.8,4813.6,0.3159]
[1755996550280,3.0,4813.6,4813.2,0.001]
[1755996550574,3.566,4813.5,4813.2,0.001]
[1755996550866,3.0,4813.3,4813.2,0.001]
[1755996551069,9.53278964,4813.3,4813.2,0.001]
[1755996551236,10.25928964,4813.3,4813.2,0.001]
[1755996551436,9.82908964,4813.3,4813.2,0.001]
[1755996551736,11.0192695,4813.3,4813.2,0.001]
[1755996552139,13.39314621,4813.3,4813.2,0.001]
[1755996552369,13.82334621,4813.3,4813.2,0.001]
[1755996552574,14.46216983,4813.3,4813.2,0.001]
[1755996552761,15.12216983,4813.3,4813.2,0.001]
[1755996553833,15.67984786,4813.3,4813.2,0.001]
[1755996554038,2.07767934,4813.1,4812.8,0.02]
[1755996554255,2.07767934,4813.1,4812.2,0.001]
[1755996554256,5.73800843,4812.3,4812.2,0.001]
[1755996554465,18.33519562,4812.3,4812.2,0.001]
[1755996554707,18.95866311,4812.3,4812.2,0.001]
[1755996554986,19.28382881,4812.3,4812.2,0.001]
[1755996555204,20.48307584,4812.3,4812.2,0.001]
[1755996556298,20.28980835,4812.3,4812.2,0.001]
[1755996558198,20.39380835,4812.3,4812.2,0.001]
[1755996558368,20.06864265,4812.3,4812.2,0.001]
[1755996558565,6.34568599,4812.3,4812.2,0.3169]
[1755996558792,8.71343896,4812.3,4812.2,0.3169]
[1755996558995,8.268,4812.3,4812.2,0.3169]
[1755996559620,5.268,4812.3,4812.2,0.3169]
[1755996560787,1.701,4812.3,4812.2,0.3169]
[1755996560990,5.269,4812.3,4812.2,0.3169]
[1755996561166,9.0959,4812.3,4812.2,0.001]
[1755996561791,9.0959,4812.3,4812.2,0.3154]
[1755996563764,9.0959,4812.3,4812.2,0.001]
[1755996564396,9.5412027,4812.3,4812.2,0.001]
[1755996564605,9.8360027,4812.3,4812.2,0.001]
[1755996564924,13.03601113,4812.3,4812.2,0.001]
[1755996565073,13.22941222,4812.3,4812.2,0.001]
[1755996565510,13.78709025,4812.3,4812.2,0.001]
[1755996565717,13.78724282,4812.3,4812.2,0.001]
[1755996566374,13.22956479,4812.3,4812.2,0.001]
[1755996566805,9.73475636,4812.3,4812.2,0.3154]
[1755996567427,8.90785636,4812.3,4812.2,0.3154]
[1755996568825,7.31085636,4812.3,4812.2,0.3154]
[1755996569032,7.1173027,4812.3,4812.2,0.3154]
[1755996569352,7.31123016,4812.3,4812.2,0.3154]
[1755996569649,7.1173027,4812.3,4812.2,0.3154]
[1755996570152,7.1173027,4812.3,4812.2,0.001]
[1755996570153,8.6387966,4812.3,4812.2,0.001]
[1755996570354,10.91506937,4812.3,4812.2,0.001]
[1755996571844,11.24022078,4812.3,4812.2,0.001]
[1755996572908,9.16221235,4812.3,4812.2,0.001]
[1755996573174,7.67222078,4812.3,4812.2,0.001]
[1755996573377,8.40441235,4812.3,4812.2,0.001]
[1755996573988,8.69921235,4812.3,4812.2,0.001]
[1755996574171,10.77722078,4812.3,4812.2,0.001]
[1755996574570,11.89376557,4812.3,4812.2,0.001]
[1755996574741,12.35576557,4812.3,4812.2,0.001]
[1755996575783,12.35909786,4812.3,4812.2,0.001]
[1755996576272,9.52428943,4812.3,4812.2,0.3154]
[1755996576498,9.52428943,4812.3,4811.2,0.001]
[1755996576499,1.248,4812.1,4811.2,0.001]
[1755996576638,13.68660374,4811.3,4811.2,0.001]
[1755996576946,16.7737844,4811.3,4811.2,0.001]
[1755996577151,17.71830096,4811.3,4811.2,0.001]
[1755996577357,18.5055295,4811.3,4811.2,0.001]
[1755996577740,14.17601087,4811.3,4811.2,0.001]
[1755996577972,17.74301087,4811.3,4811.2,0.001]
[1755996578454,11.21022123,4811.3,4811.2,0.001]
[1755996579003,11.21076956,4811.3,4811.2,0.001]
[1755996579480,11.21076294,4811.3,4811.2,0.001]
[1755996579667,11.21076441,4811.3,4811.2,0.001]
[1755996579845,10.88553587,4811.3,4811.2,0.001]
[1755996582290,11.54553587,4811.3,4811.2,0.001]
[1755996582490,25.84960304,4811.3,4811.2,0.001]
[1755996583375,2.07861314,4810.9,4810.8,0.02]
[1755996583576,13.54332991,4810.9,4810.8,0.02]
[1755996583886,14.3305932,4810.9,4810.8,0.02]
[1755996584183,14.21385204,4810.9,4810.8,0.02]
[1755996585178,14.21387921,4810.9,4810.8,0.02]
[1755996586651,13.75187921,4810.9,4810.8,0.02]
[1755996586885,14.21387921,4810.9,4810.8,0.02]
[1755996587084,2.73895885,4810.1,4810.0,0.001]
[1755996587269,24.43040964,4810.1,4810.0,0.001]
[1755996587582,24.89240964,4810.1,4810.0,0.001]
[1755996587887,25.21772486,4810.1,4810.0,0.001]
[1755996588288,26.46572486,4810.1,4810.0,0.001]
[1755996588466,27.62594731,4810.1,4810.0,0.001]
[1755996588670,27.43145106,4810.1,4810.0,0.001]
[1755996588871,27.62567787,4810.1,4810.0,0.001]
[1755996589086,27.77947696,4810.1,4810.0,0.001]
[1755996589689,27.77938737,4810.1,4810.0,0.001]
[1755996590499,1.7584454,4810.1,4810.0,0.2924]
[1755996590657,0.19413722,4810.1,4810.0,2.66090207]
[1755996590867,0.5586698,4811.0,4810.0,0.5819]
[1755996591063,3.568,4811.4,4810.1,0.22019]
[1755996591389,3.19399746,4811.3,4810.0,2.07999821]
[1755996591599,3.0,4811.1,4810.0,0.001]
[1755996591769,3.0,4810.9,4810.0,0.001]
[1755996591974,3.568,4810.8,4810.0,0.001]
[1755996592162,0.19403443,4810.7,4810.0,0.001]
[1755996592495,3.569,4811.1,4810.1,2.07894956]
[1755996592660,3.0,4811.0,4810.1,2.07894956]
[1755996593389,3.0,4811.0,4810.3,2.07886925]
[1755996594164,3.0,4811.0,4810.0,0.001]
[1755996594359,0.002,4810.9,4810.2,2.07890982]
[1755996594593,0.002,4810.9,4810.0,0.001]
[1755996594892,0.002,4810.9,4810.1,2.07895885]
[1755996595093,0.002,4810.9,4810.2,2.07890568]
[1755996595971,0.002,4810.9,4810.0,2.07996068]
[1755996596472,0.002,4810.9,4810.0,0.001]
[1755996596664,0.002,4810.9,4810.1,2.07894735]
[1755996597299,0.104,4810.6,4810.0,0.001]
[1755996597511,0.104,4810.6,4810.0,2.07999099]
[1755996597693,0.104,4810.6,4810.0,0.001]
[1755996598385,0.104,4810.6,4810.0,2.08000007]
[1755996599501,0.104,4810.6,4810.0,0.001]
[1755996599793,0.104,4810.6,4810.1,2.07891879]
[1755996600000,0.104,4810.6,4810.0,0.001]
[1755996600406,4.0146,4810.7,4810.0,0.001]
[1755996600607,0.104,4810.1,4810.0,0.001]
[1755996601431,0.8528,4810.1,4810.0,0.001]
[1755996601571,6.76076464,4810.1,4810.0,0.001]
[1755996601774,6.20209484,4810.1,4810.0,0.001]
[1755996602707,6.64971244,4810.1,4810.0,0.001]
[1755996603220,8.72867129,4810.1,4810.0,0.001]
[1755996604883,6.64971244,4810.1,4810.0,0.001]
[1755996605286,8.72867129,4810.1,4810.0,0.001]
[1755996606981,9.4735703,4810.1,4810.0,0.001]
[1755996607187,8.53437645,4810.1,4810.0,0.001]
[1755996607495,8.72878719,4810.1,4810.0,0.001]
[1755996608015,8.72876257,4810.1,4810.0,0.001]
[1755996608189,9.47498794,4810.1,4810.0,0.001]
[1755996608372,8.72876257,4810.1,4810.0,0.001]
[1755996608575,12.29676257,4810.1,4810.0,0.001]
[1755996611724,12.40076257,4810.1,4810.0,0.001]
[1755996612082,4.04820372,4810.1,4810.0,0.001]
[1755996612282,7.31400372,4810.1,4810.0,0.001]
[1755996613215,4.31400372,4810.1,4810.0,0.001]
[1755996613396,7.31400372,4810.1,4810.0,0.001]
[1755996614528,7.21000372,4810.1,4810.0,0.001]
[1755996614708,7.31400372,4810.1,4810.0,0.001]
[1755996616192,3.74600372,4810.1,4810.0,0.001]
[1755996617152,8.06269455,4810.1,4810.0,0.001]
[1755996617582,7.8684176,4810.1,4810.0,0.001]
[1755996617783,8.06271426,4810.1,4810.0,0.001]
[1755996618012,17.25167311,4810.1,4810.0,0.001]
[1755996618252,17.91167311,4810.1,4810.0,0.001]
[1755996624339,24.46327408,4810.1,4810.0,0.001]
[1755996624642,25.20949945,4810.1,4810.0,0.001]
[1755996625615,2.7390453,4809.9,4809.8,0.021]
[1755996625820,2.7390453,4809.9,4809.0,0.001]
[1755996625821,0.75863543,4809.9,4809.0,0.001]
[1755996626016,0.19429666,4809.8,4809.0,0.001]
[1755996626239,6.60266701,4809.6,4809.0,0.001]
[1755996626439,10.25238924,4809.6,4809.0,0.001]
[1755996626752,12.42887013,4809.6,4809.0,0.001]
[1755996627052,12.7545589,4809.6,4809.0,0.001]
[1755996628442,13.87501608,4809.6,4809.0,0.001]
[1755996628753,13.54967349,4809.6,4809.0,0.001]
[1755996628954,2.73939115,4809.1,4809.0,0.001]
[1755996629122,10.36973248,4809.1,4809.0,0.001]
[1755996629497,10.83043248,4809.1,4809.0,0.001]
[1755996629614,8.75104133,4809.1,4809.0,0.001]
[1755996630152,7.98704133,4809.1,4809.0,0.001]
[1755996630656,7.21025743,4809.1,4809.0,0.001]
[1755996630955,7.87025743,4809.1,4809.0,0.001]
[1755996631155,4.21025743,4809.1,4809.0,0.001]
[1755996631339,0.64225743,4809.1,4809.0,0.001]
[1755996631538,0.19463983,4809.1,4809.0,0.001]
[1755996631738,0.64225743,4809.1,4809.0,0.001]
[1755996632449,0.64225743,4809.1,4809.0,0.121]
[1755996632619,0.19463983,4809.1,4809.0,0.121]
[1755996632815,0.19463983,4809.3,4809.0,0.121]
[1755996633044,0.64225743,4809.4,4809.0,0.121]
[1755996633558,3.0,4809.2,4809.0,0.121]
[1755996633748,0.64225743,4809.1,4809.0,0.121]
[1755996633924,4.51355743,4809.1,4809.0,0.121]
[1755996634123,8.53527528,4809.1,4809.0,0.121]
[1755996634361,8.86061788,4809.1,4809.0,0.121]
[1755996634658,10.94000903,4809.1,4809.0,0.121]
[1755996635956,11.04400903,4809.1,4809.0,0.121]
[1755996636143,8.96461788,4809.1,4809.0,0.121]
[1755996636461,8.20061788,4809.1,4809.0,0.121]
[1755996636664,7.63960003,4809.1,4809.0,0.121]
[1755996636827,4.07179639,4809.1,4809.0,0.121]
[1755996637030,0.74645379,4809.1,4809.0,0.121]